bitfinex/quotes_BTCUSD_20240811
["timestamp","ask_amount","ask_price","bid_price","bid_amount"]
[1723408401107,0.357793,58693.0,58692.0,0.0653788]
[1723408401307,0.119264,58693.0,58692.0,0.0653788]
[1723408401571,0.4675,58712.0,58692.0,0.34845972]
[1723408401778,0.238499,58701.0,58693.0,0.16381492]
[1723408401907,0.238499,58701.0,58694.0,0.05348627]
[1723408402111,0.119249,58701.0,58695.0,0.16381492]
[1723408402322,0.238458,58711.0,58696.0,0.3672]
[1723408402541,0.49107874,58711.0,58697.0,0.16381492]
[1723408402692,0.119239,58706.0,58699.0,0.119251]
[1723408402893,0.119239,58706.0,58701.0,0.1864]
[1723408403199,0.119241,58705.0,58702.0,0.16381492]
[1723408403594,0.30822883,58715.0,58701.0,0.1864]
[1723408403595,0.08184646,58706.0,58701.0,0.1864]
[1723408403801,0.08184646,58706.0,58698.0,0.05845012]
[1723408403802,0.119252,58699.0,58698.0,0.05845012]
[1723408404288,0.119247,58702.0,58698.0,0.22226504]
[1723408404423,0.119244,58703.0,58699.0,0.24150142]
[1723408404623,0.11924,58705.0,58701.0,0.001]
[1723408404884,0.119244,58703.0,58702.0,0.16381492]
[1723408405263,0.357732,58703.0,58702.0,0.16381492]
[1723408405425,0.59622,58703.0,58702.0,0.16381492]
[1723408405630,0.59622,58703.0,58699.0,0.0776865]
[1723408405631,0.35775,58700.0,58699.0,0.0776865]
[1723408405926,0.119256,58697.0,58696.0,0.1864]
[1723408406111,0.357769,58697.0,58696.0,0.1864]
[1723408406312,0.119256,58697.0,58696.0,0.1864]
[1723408407226,0.357769,58697.0,58696.0,0.1864]
[1723408407430,0.596282,58697.0,58696.0,0.01964199]
[1723408407640,0.357775,58696.0,58695.0,0.0009119]
[1723408407768,0.596292,58696.0,58695.0,0.0009119]
[1723408407970,0.834809,58696.0,58695.0,0.0009119]
[1723408408309,0.596292,58696.0,58695.0,0.0009119]
[1723408408725,0.834809,58696.0,58695.0,0.0009119]
[1723408409032,0.838809,58696.0,58695.0,0.0009119]
[1723408409370,0.835809,58696.0,58695.0,0.0099119]
[1723408409572,0.598292,58696.0,58695.0,0.0189119]
[1723408410806,0.597292,58696.0,58695.0,0.0099119]
[1723408411171,0.601292,58696.0,58695.0,0.0009119]
[1723408411301,0.605292,58696.0,58695.0,0.0009119]
[1723408411508,0.843809,58696.0,58695.0,0.0009119]
[1723408411725,0.840809,58696.0,58695.0,0.0099119]
[1723408412091,0.841809,58696.0,58695.0,0.0189119]
[1723408412494,0.602292,58696.0,58695.0,0.0099119]
[1723408412699,0.602292,58696.0,58695.0,0.0009119]
[1723408412700,0.596292,58696.0,58695.0,0.0009119]
[1723408412923,0.838809,58696.0,58695.0,0.0009119]
[1723408414155,0.839809,58696.0,58695.0,0.0009119]
[1723408414574,0.841809,58696.0,58695.0,0.0019119]
[1723408414779,0.842809,58696.0,58695.0,0.0019119]
[1723408414985,0.835809,58696.0,58695.0,0.0009119]
[1723408415160,0.834809,58696.0,58695.0,0.0009119]
[1723408415498,0.843809,58696.0,58695.0,0.0009119]
[1723408415697,0.834809,58696.0,58695.0,0.0009119]
[1723408416126,2.77103882,58696.0,58695.0,0.0009119]
[1723408416328,2.87103882,58696.0,58695.0,0.0009119]
[1723408416672,2.93232535,58696.0,58695.0,0.0009119]
[1723408417089,2.61032745,58696.0,58695.0,0.0009119]
[1723408417296,2.60832745,58696.0,58695.0,0.0009119]
[1723408417514,2.61332745,58696.0,58695.0,0.0009119]
[1723408417725,2.61232745,58696.0,58695.0,0.0009119]
[1723408418127,2.62132745,58696.0,58695.0,0.0019119]
[1723408418492,2.61232745,58696.0,58695.0,0.0009119]
[1723408418692,2.61732745,58696.0,58695.0,0.0019119]
[1723408418973,2.63132745,58696.0,58695.0,0.0029119]
[1723408419129,2.86984445,58696.0,58695.0,0.0029119]
[1723408419533,2.63132745,58696.0,58695.0,0.0019119]
[1723408419738,2.62232745,58696.0,58695.0,0.0019119]
[1723408419942,2.14521253,58696.0,58695.0,0.0019119]
[1723408420144,0.67157853,58696.0,58695.0,0.0019119]
[1723408420343,0.67157853,58696.0,58695.0,0.0009119]
[1723408420344,0.357775,58696.0,58695.0,0.0009119]
[1723408420542,0.357775,58696.0,58695.0,0.04104389]
[1723408420742,0.357775,58696.0,58695.0,0.04204389]
[1723408420743,0.371775,58696.0,58695.0,0.04204389]
[1723408421138,0.371775,58696.0,58695.0,0.04304389]
[1723408421139,0.380775,58696.0,58695.0,0.04304389]
[1723408421459,0.357775,58696.0,58695.0,0.04104389]
[1723408421672,0.362775,58696.0,58695.0,0.04104389]
[1723408421823,0.362775,58696.0,58695.0,1.00096081]
[1723408421824,0.005,58696.0,58695.0,1.00096081]
[1723408422042,0.000829,58722.0,58707.0,0.5911]
[1723408422233,0.84877474,58709.0,58708.0,0.05911]
[1723408422411,0.59616,58709.0,58708.0,0.05911]
[1723408422621,0.59616,58709.0,58701.0,0.1998]
[1723408422622,0.357738,58702.0,58701.0,0.1998]
[1723408422837,0.59623,58702.0,58701.0,0.1998]
[1723408423213,0.357775,58696.0,58695.0,0.24584389]
[1723408423413,0.119258,58696.0,58695.0,0.24584389]
[1723408423641,0.357775,58696.0,58695.0,0.24584389]
[1723408424082,0.119258,58696.0,58695.0,0.24484389]
[1723408424284,0.357775,58696.0,58695.0,0.24484389]
[1723408424434,0.358775,58696.0,58695.0,0.25884389]
[1723408424632,0.358775,58696.0,58695.0,0.25484389]
[1723408424932,0.238459,58711.0,58697.0,0.119256]
[1723408424933,0.006,58709.0,58697.0,0.119256]
[1723408425130,0.119247,58702.0,58698.0,0.279188]
[1723408425336,0.23847,58708.0,58698.0,0.279188]
[1723408425620,0.119238,58707.0,58701.0,0.119247]
[1723408425748,0.119238,58707.0,58702.0,0.16381492]
[1723408425952,0.11923,58710.0,58704.0,0.119241]
[1723408426158,0.11923,58710.0,58703.0,0.023]
[1723408426159,0.009,58709.0,58706.0,0.1998]
[1723408426360,0.004,58709.0,58707.0,0.16381492]
[1723408426745,0.004,58709.0,58706.0,0.1998]
[1723408426746,0.119236,58707.0,58706.0,0.1998]
[1723408426969,0.59618,58707.0,58706.0,0.1998]
[1723408427581,0.11925,58700.0,58699.0,0.1998]
[1723408427946,0.119245,58703.0,58702.0,0.003]
[1723408428151,0.357733,58703.0,58702.0,0.003]
[1723408428330,0.119246,58702.0,58701.0,0.002]
[1723408428610,0.59623,58702.0,58701.0,0.002]
[1723408428807,0.59625,58700.0,58699.0,0.0747517]
[1723408428978,0.83475,58700.0,58699.0,0.0747517]
[1723408429857,0.83475,58700.0,58695.0,0.0009119]
[1723408430060,0.834809,58696.0,58695.0,0.0009119]
[1723408431249,1.44503997,58696.0,58695.0,0.0009119]
[1723408431459,1.54503997,58696.0,58695.0,0.0009119]
[1723408431770,1.60784538,58696.0,58695.0,0.0009119]
[1723408431926,1.61284538,58696.0,58695.0,0.0009119]
[1723408432113,1.60984538,58696.0,58695.0,0.0009119]
[1723408432325,1.11172297,58696.0,58695.0,0.0009119]
[1723408432714,1.13913727,58696.0,58695.0,0.001]
[1723408433551,1.13914715,58696.0,58695.0,0.001]
[1723408434023,0.834851,58693.0,58692.0,0.00627363]
[1723408434557,1.01177497,58693.0,58692.0,0.00627363]
[1723408434927,0.834851,58693.0,58692.0,0.00627363]
[1723408435126,0.834851,58693.0,58692.0,0.04506099]
[1723408435437,0.834851,58693.0,58692.0,0.00627363]
[1723408435663,0.841851,58693.0,58692.0,0.00727363]
[1723408436513,0.847851,58693.0,58692.0,0.00827363]
[1723408436916,1.02477609,58693.0,58692.0,0.00827363]
[1723408437137,0.834851,58693.0,58692.0,0.00627363]
[1723408437502,1.82181865,58693.0,58692.0,0.00727363]
[1723408437708,1.73800373,58693.0,58692.0,0.00727363]
[1723408438080,1.56108,58693.0,58692.0,0.00727363]
[1723408438566,1.55608,58693.0,58692.0,0.00727363]
[1723408438899,1.56208,58693.0,58692.0,0.00827363]
[1723408439448,1.55608,58693.0,58692.0,0.00727363]
[1723408439765,1.56108,58693.0,58692.0,0.00727363]
[1723408439966,2.23832392,58693.0,58692.0,0.00727363]
[1723408440178,3.0775183,58693.0,58692.0,0.00727363]
[1723408440382,1.56257438,58693.0,58692.0,0.00727363]
[1723408440583,0.011,58693.0,58692.0,0.19397363]
[1723408440711,0.368793,58693.0,58692.0,0.19397363]
[1723408440916,1.232151,58693.0,58692.0,0.00727363]
[1723408441134,1.46468,58693.0,58692.0,0.00627363]
[1723408441343,0.362793,58693.0,58692.0,0.00627363]
[1723408441581,0.362793,58693.0,58692.0,0.39477363]
[1723408441582,0.609322,58693.0,58692.0,0.39477363]
[1723408441782,0.119264,58693.0,58692.0,0.61965099]
[1723408442155,0.133264,58693.0,58692.0,0.62065099]
[1723408442582,0.119243,58704.0,58693.0,0.3875]
[1723408442742,0.72953674,58711.0,58693.0,0.3875]
[1723408442743,0.49107874,58711.0,58701.0,0.3875]
[1723408442956,0.10184646,58727.0,58696.0,0.16381492]
[1723408442957,0.119227,58712.0,58704.0,0.3875]
[1723408443150,0.119215,58718.0,58709.0,0.119232]
[1723408443349,0.3863,58730.0,58711.0,0.1864]
[1723408443556,0.32020346,58736.0,58713.0,0.3875]
[1723408443557,0.10184646,58736.0,58713.0,0.3875]
[1723408443788,0.238422,58720.0,58713.0,0.3865]
[1723408444048,0.38873065,58729.0,58714.0,0.19022129]
[1723408444279,0.238385,58729.0,58716.0,0.35221492]
[1723408444497,0.06128387,58739.0,58721.0,0.119207]
[1723408444498,0.238369,58733.0,58721.0,0.119207]
[1723408444660,0.068214,58741.0,58721.0,0.119207]
[1723408444661,0.238355,58736.0,58721.0,1.11608007]
[1723408445182,0.238355,58736.0,58721.0,1.14291514]
[1723408445437,0.238326,58744.0,58723.0,0.238405]
[1723408445642,0.49107874,58746.0,58733.0,0.119182]
[1723408445643,0.119169,58740.0,58733.0,0.119182]
[1723408445844,0.119169,58740.0,58734.0,0.2863996]
[1723408446044,0.49107874,58746.0,58735.0,0.023]
[1723408446290,0.119159,58745.0,58738.0,0.119172]
[1723408446504,0.119159,58745.0,58735.0,0.023]
[1723408446505,0.000829,58752.0,58739.0,0.19021933]
[1723408446722,0.119154,58748.0,58742.0,0.119164]
[1723408446959,0.000829,58752.0,58743.0,0.54531492]
[1723408446960,0.119155,58747.0,58743.0,0.54531492]
[1723408447170,0.238298,58750.0,58740.0,0.15702993]
[1723408447171,0.119167,58741.0,58740.0,0.03786193]
[1723408447394,0.357501,58741.0,58740.0,0.03786193]
[1723408447601,0.595835,58741.0,58740.0,0.03786193]
[1723408447848,0.357501,58741.0,58740.0,0.03786193]
[1723408448471,0.595835,58741.0,58740.0,0.03786193]
[1723408448683,0.357501,58741.0,58740.0,0.04186193]
[1723408449110,0.595835,58741.0,58740.0,0.004]
[1723408449335,0.08184646,58743.0,58740.0,0.16381492]
[1723408449536,0.08184646,58743.0,58738.0,0.119171]
[1723408449537,0.119158,58746.0,58741.0,0.76001492]
[1723408449741,0.119161,58744.0,58741.0,0.76001492]
[1723408449947,0.119161,58744.0,58742.0,0.07680149]
[1723408450156,0.20100946,58743.0,58742.0,0.07680149]
[1723408450934,0.08184646,58749.0,58742.0,0.24061641]
[1723408451142,0.119147,58751.0,58743.0,0.18681492]
[1723408451295,0.119149,58750.0,58744.0,0.11355937]
[1723408451493,0.119157,58746.0,58745.0,0.16381492]
[1723408451731,0.000829,58752.0,58746.0,0.119156]
[1723408451939,0.000829,58752.0,58751.0,0.75954692]
[1723408452125,0.000829,58752.0,58751.0,1.37874692]
[1723408452285,0.01779958,58777.0,58763.0,0.238245]
[1723408452501,0.01779958,58777.0,58766.0,0.4055]
[1723408452502,0.238188,58777.0,58766.0,0.4055]
[1723408452705,0.238193,58776.0,58767.0,0.023]
[1723408452901,0.238193,58776.0,58768.0,0.16381492]
[1723408452902,0.238201,58774.0,58768.0,0.16381492]
[1723408453107,0.00829,58781.0,58772.0,0.238208]
[1723408453377,0.00829,58781.0,58780.0,0.357264]
[1723408453710,0.00829,58781.0,58780.0,0.78301492]
[1723408454126,0.00829,58781.0,58780.0,1.14027892]
[1723408454347,0.00829,58781.0,58780.0,1.37845492]
[1723408454560,0.00829,58781.0,58780.0,1.14027892]
[1723408454803,0.00829,58781.0,58780.0,0.92086171]
[1723408454804,0.127376,58781.0,58780.0,0.92086171]
[1723408455010,0.127376,58781.0,58780.0,0.93286171]
[1723408455011,0.00929,58781.0,58780.0,0.93286171]
[1723408455210,0.00829,58781.0,58780.0,1.03994971]
[1723408455694,0.01029,58781.0,58780.0,1.53630171]
[1723408455913,0.01029,58781.0,58780.0,1.52430171]
[1723408456129,0.01029,58781.0,58780.0,1.52830171]
[1723408456363,0.01129,58781.0,58780.0,1.53630171]
[1723408456738,0.01129,58781.0,58780.0,1.52830171]
[1723408456875,0.01029,58781.0,58780.0,1.52830171]
[1723408457083,0.01129,58781.0,58780.0,1.53630171]
[1723408457487,0.00929,58781.0,58780.0,1.52430171]
[1723408457998,0.00929,58781.0,58780.0,0.94286171]
[1723408457999,0.01029,58781.0,58780.0,0.94286171]
[1723408458674,0.01029,58781.0,58780.0,0.93486171]
[1723408458856,0.00929,58781.0,58780.0,0.93486171]
[1723408459115,0.01029,58781.0,58780.0,1.28612571]
[1723408459240,0.00929,58781.0,58780.0,1.52430171]
[1723408459830,0.00929,58781.0,58780.0,1.28612571]
[1723408460130,0.00829,58781.0,58780.0,1.28812571]
[1723408460541,0.00929,58781.0,58780.0,1.30212571]
[1723408460947,0.00829,58781.0,58780.0,1.28812571]
[1723408461153,0.00929,58781.0,58780.0,1.06394971]
[1723408461390,0.01029,58781.0,58780.0,1.03594971]
[1723408461602,0.01029,58781.0,58780.0,1.27412571]
[1723408461868,0.01129,58781.0,58780.0,1.28812571]
[1723408462095,0.00929,58781.0,58780.0,0.16381492]
[1723408462329,0.01029,58781.0,58774.0,0.1907]
[1723408462539,0.01029,58781.0,58774.0,0.3098]
[1723408462540,0.08184646,58775.0,58774.0,0.3098]
[1723408462753,0.01129,58781.0,58774.0,0.1907]
[1723408462989,0.01029,58781.0,58778.0,0.119091]
[1723408463431,0.01029,58781.0,58780.0,0.002]
[1723408463631,0.01029,58781.0,58780.0,0.16581492]
[1723408463832,0.01029,58781.0,58780.0,0.30790292]
[1723408463833,0.00829,58781.0,58780.0,0.30790292]
[1723408464236,0.00829,58781.0,58780.0,0.18881492]
[1723408464445,0.00829,58781.0,58780.0,0.24342441]
[1723408464631,0.00929,58781.0,58780.0,0.25142441]
[1723408464829,0.00829,58781.0,58780.0,0.24342441]
[1723408465065,0.00829,58781.0,58780.0,0.24842441]
[1723408465237,0.00929,58781.0,58780.0,0.24842441]
[1723408465512,0.01029,58781.0,58780.0,0.24842441]
[1723408466186,0.00929,58781.0,58780.0,0.24842441]
[1723408466444,0.00929,58781.0,58780.0,0.25642441]
[1723408466445,0.01029,58781.0,58780.0,0.25642441]
[1723408466656,0.01029,58781.0,58780.0,0.61368841]
[1723408466812,0.00929,58781.0,58780.0,0.60668841]
[1723408467212,0.00929,58781.0,58780.0,1.15346552]
[1723408467828,0.00829,58781.0,58780.0,0.90728952]
[1723408467956,0.00929,58781.0,58780.0,0.91528952]
[1723408468168,0.01029,58781.0,58780.0,1.16346552]
[1723408468615,0.01029,58781.0,58780.0,0.80620152]
[1723408469116,0.01029,58781.0,58780.0,0.80620188]
[1723408469365,0.367548,58781.0,58780.0,0.37770188]
[1723408469570,0.367548,58781.0,58780.0,0.07260949]
[1723408469571,0.60572,58781.0,58780.0,0.07260949]
[1723408469772,1.214792,58781.0,58780.0,0.018]
[1723408469984,1.643064,58781.0,58780.0,0.018]
[1723408470207,2.16505092,58781.0,58780.0,0.018]
[1723408470407,2.76505092,58781.0,58780.0,0.008]
[1723408470586,2.76505092,58781.0,58752.0,0.3775119]
[1723408470587,0.119142,58753.0,58752.0,0.0009119]
[1723408470819,0.3709,58757.0,58752.0,0.0009119]
[1723408470820,0.119141,58754.0,58752.0,0.30608924]
[1723408471100,0.11914,58754.0,58753.0,0.14136242]
[1723408471232,0.595702,58754.0,58753.0,0.14136242]
[1723408471473,0.595702,58754.0,58753.0,0.17197134]
[1723408471474,1.204883,58754.0,58753.0,0.17197134]
[1723408471672,1.204883,58754.0,58752.0,0.0009119]
[1723408471673,0.833997,58753.0,58752.0,0.0009119]
[1723408471896,1.031097,58753.0,58752.0,0.0019119]
[1723408472326,1.024097,58753.0,58752.0,0.0009119]
[1723408472918,1.54619692,58753.0,58752.0,0.0009119]
[1723408473118,2.15538192,58753.0,58752.0,0.0009119]
[1723408473352,2.97214674,58753.0,58752.0,0.0009119]
[1723408473722,0.02,58736.0,58714.0,0.1955]
[1723408474113,0.02,58736.0,58704.0,0.002]
[1723408474114,0.3709,58724.0,58718.0,0.05967964]
[1723408474330,0.3709,58724.0,58707.0,0.05967964]
[1723408474548,0.3709,58724.0,58712.0,0.3766]
[1723408474728,0.2549,58742.0,58715.0,0.05967964]
[1723408474729,0.3709,58735.0,58715.0,0.05967964]
[1723408474930,0.238389,58728.0,58717.0,0.05967964]
[1723408475241,0.3709,58735.0,58717.0,0.05967964]
[1723408475242,0.119209,58721.0,58718.0,0.14146011]
[1723408475431,0.238401,58725.0,58719.0,0.14146011]
[1723408475626,0.028,58724.0,58720.0,0.30527503]
[1723408475855,0.028,58724.0,58723.0,0.35761]
[1723408475996,0.014,58724.0,58723.0,1.1748231]
[1723408476197,0.014,58724.0,58723.0,0.82121399]
[1723408476402,0.014,58724.0,58723.0,0.8171341]
[1723408476596,0.014,58724.0,58723.0,0.89980898]
[1723408476798,0.01,58728.0,58727.0,0.119195]
[1723408477021,0.01,58728.0,58727.0,0.74639583]
[1723408477191,0.01,58728.0,58727.0,1.43530035]
[1723408477400,0.023,58728.0,58727.0,1.43530035]
[1723408477619,0.08184646,58746.0,58727.0,0.83932335]
[1723408477829,0.49107874,58740.0,58729.0,0.0596671]
[1723408478057,0.238331,58742.0,58730.0,0.27941397]
[1723408478251,0.238331,58742.0,58732.0,0.119185]
[1723408478252,0.238339,58740.0,58732.0,0.119185]
[1723408478505,0.238331,58742.0,58733.0,0.32821898]
[1723408478660,0.238334,58741.0,58734.0,0.14140406]
[1723408478869,0.119172,58739.0,58735.0,0.30521898]
[1723408479210,0.238334,58741.0,58735.0,0.30521898]
[1723408479211,0.119175,58737.0,58736.0,0.18614426]
[1723408479428,0.119175,58737.0,58736.0,0.34995918]
[1723408479835,0.357525,58737.0,58736.0,0.18614426]
[1723408480031,0.357525,58737.0,58730.0,0.09259905]
[1723408480326,0.119178,58736.0,58731.0,0.30522149]
[1723408480674,0.119178,58736.0,58733.0,0.001]
[1723408480777,0.119179,58735.0,58734.0,0.30522149]
[1723408480980,0.119179,58735.0,58734.0,0.14140657]
[1723408480981,0.357537,58735.0,58734.0,0.14140657]
[1723408481695,0.238358,58735.0,58727.0,0.0605799]
[1723408481998,0.238367,58733.0,58728.0,0.14141569]
[1723408482192,0.238367,58733.0,58729.0,0.14141918]
[1723408482392,0.238367,58733.0,58730.0,0.14141918]
[1723408482594,0.119193,58729.0,58727.0,0.16381492]
[1723408482931,0.119193,58729.0,58728.0,0.1414198]
[1723408483140,0.595959,58729.0,58728.0,0.17194327]
[1723408483345,0.595959,58729.0,58728.0,0.1414198]
[1723408483548,0.119205,58722.0,58721.0,0.0009108]
[1723408483749,0.119205,58722.0,58721.0,0.16472572]
[1723408483750,0.357616,58722.0,58721.0,0.16472572]
[1723408483960,0.357616,58722.0,58721.0,0.30615834]
[1723408484187,0.834438,58722.0,58721.0,0.14234342]
[1723408484408,1.36915292,58722.0,58721.0,0.0009108]
[1723408484610,1.56925292,58722.0,58721.0,0.00075964]
[1723408484958,1.57425292,58722.0,58721.0,0.00075964]
[1723408485159,1.58425292,58722.0,58721.0,0.00075964]
[1723408485513,1.58225292,58722.0,58721.0,0.00075964]
[1723408485696,2.46066392,58722.0,58721.0,0.00075964]
[1723408485895,2.47466392,58722.0,58721.0,0.00075964]
[1723408486188,1.94766392,58722.0,58721.0,0.00175964]
[1723408487147,1.93166392,58722.0,58721.0,0.00075964]
[1723408487721,1.93166392,58722.0,58721.0,0.00175964]
[1723408487916,1.93166392,58722.0,58721.0,0.00075964]
[1723408488119,1.747849,58722.0,58721.0,0.00075964]
[1723408488318,0.994927,58722.0,58721.0,0.00175964]
[1723408488492,0.610027,58722.0,58721.0,0.00075964]
[1723408488671,0.624027,58722.0,58721.0,0.00075964]
[1723408489321,0.624027,58722.0,58721.0,0.00175964]
[1723408489524,0.624027,58722.0,58721.0,0.0311056]
[1723408489525,0.156205,58722.0,58721.0,0.0311056]
[1723408489722,0.394616,58722.0,58721.0,0.00175964]
[1723408490389,0.633027,58722.0,58721.0,0.00175964]
[1723408490620,0.605027,58722.0,58721.0,0.00075964]
[1723408490859,0.834438,58722.0,58721.0,0.00075964]
[1723408491081,0.843267,58722.0,58721.0,0.00175964]
[1723408491228,0.843267,58722.0,58721.0,0.00075964]
[1723408491229,0.857267,58722.0,58721.0,0.00075964]
[1723408491432,1.145267,58722.0,58721.0,0.00075964]
[1723408491637,1.379678,58722.0,58721.0,0.00175964]
[1723408491837,1.388678,58722.0,58721.0,0.00175964]
[1723408492397,1.361678,58722.0,58721.0,0.00075964]
[1723408492603,1.71409292,58722.0,58721.0,0.00075964]
[1723408492882,1.71409292,58722.0,58721.0,0.00175964]
[1723408492883,1.83309292,58722.0,58721.0,0.00175964]
[1723408493444,2.46309292,58722.0,58721.0,0.00175964]
[1723408493851,2.45309292,58722.0,58721.0,0.00075964]
[1723408494191,2.45409292,58722.0,58721.0,0.00175964]
[1723408494403,2.46309292,58722.0,58721.0,0.00175964]
[1723408494773,2.70150392,58722.0,58721.0,0.00175964]
[1723408494975,2.69250392,58722.0,58721.0,0.00175964]
[1723408495419,2.68250392,58722.0,58721.0,0.00075964]
[1723408495577,2.69650392,58722.0,58721.0,0.00075964]
[1723408495778,2.71050392,58722.0,58721.0,0.00175964]
[1723408495960,2.69650392,58722.0,58721.0,0.00175964]
[1723408496840,2.69650392,58722.0,58693.0,0.009108]
[1723408496841,0.119262,58694.0,58693.0,0.009108]
[1723408497040,0.596312,58694.0,58693.0,0.009108]
[1723408497443,0.834837,58694.0,58693.0,0.009108]
[1723408498029,0.835837,58694.0,58693.0,0.018108]
[1723408498230,0.834837,58694.0,58693.0,0.009108]
[1723408498699,0.838837,58694.0,58693.0,0.009108]
[1723408498929,0.597312,58694.0,58693.0,0.009108]
[1723408499055,0.596312,58694.0,58693.0,0.009108]
[1723408499460,0.596312,58694.0,58693.0,0.03981616]
[1723408500021,0.357787,58694.0,58693.0,0.009108]
[1723408500222,0.01037197,58707.0,58694.0,0.2917]
[1723408500344,0.288,58713.0,58695.0,0.30531979]
[1723408500559,0.288,58713.0,58700.0,0.4792]
[1723408500560,0.0099276,58713.0,58700.0,0.4792]
[1723408500771,0.288,58719.0,58701.0,0.33172643]
[1723408500988,0.000829,58722.0,58704.0,0.64301492]
[1723408501185,0.000829,58722.0,58721.0,0.119207]
[1723408501421,0.000829,58722.0,58721.0,1.22667452]
[1723408501614,0.000829,58722.0,58721.0,1.30939243]
[1723408501825,0.49107874,58740.0,58723.0,0.1875]
[1723408502028,0.49107874,58740.0,58729.0,0.238381]
[1723408502279,0.238328,58743.0,58733.0,0.119182]
[1723408502280,0.119171,58739.0,58733.0,0.119182]
[1723408502478,0.238328,58743.0,58734.0,0.30525244]
[1723408502479,0.119174,58738.0,58734.0,0.30525244]
[1723408502605,0.238317,58746.0,58735.0,0.14143752]
[1723408502810,0.119175,58737.0,58736.0,0.14143752]
[1723408503010,0.595875,58737.0,58736.0,0.158377]
[1723408503580,0.595875,58737.0,58736.0,0.01693948]
[1723408503785,0.08184646,58749.0,58736.0,0.16381492]
[1723408503996,0.08184646,58749.0,58730.0,0.238376]
[1723408503997,0.003,58740.0,58737.0,0.30522251]
[1723408504195,0.003,58740.0,58739.0,0.545013]
[1723408504419,0.238268,58758.0,58740.0,0.2917]
[1723408504617,0.49107874,58755.0,58747.0,0.119154]
[1723408504823,0.238269,58757.0,58748.0,0.32054186]
[1723408505030,0.08184646,58762.0,58748.0,0.17573032]
[1723408505031,0.371451,58749.0,58748.0,0.17573032]
[1723408505235,0.595752,58749.0,58748.0,0.31709524]
[1723408505403,0.11915,58749.0,58748.0,0.31709524]
[1723408505602,0.119149,58750.0,58748.0,0.31709524]
[1723408505801,0.11915,58749.0,58748.0,0.17573032]
[1723408506025,0.119145,58752.0,58748.0,0.31709982]
[1723408506225,0.1986,58774.0,58749.0,0.1413695]
[1723408506226,0.238273,58756.0,58749.0,0.1413695]
[1723408506363,0.238273,58756.0,58750.0,0.32818442]
[1723408506568,0.119146,58751.0,58750.0,0.18681492]
[1723408506822,0.119146,58751.0,58750.0,0.34805427]
[1723408507337,0.87907874,58770.0,58750.0,0.34805427]
[1723408507338,0.002,58757.0,58751.0,0.1875]
[1723408507535,0.002,58757.0,58753.0,0.2917]
[1723408507741,0.002,58757.0,58756.0,0.119136]
[1723408507946,0.238241,58764.0,58756.0,0.60510134]
[1723408508182,0.119124,58762.0,58757.0,0.52429389]
[1723408508387,0.119117,58766.0,58758.0,0.14134497]
[1723408508590,0.119118,58765.0,58759.0,0.30856327]
[1723408508790,0.33016684,58784.0,58764.0,0.1875]
[1723408508791,0.238205,58773.0,58764.0,0.1875]
[1723408509095,0.238178,58780.0,58765.0,0.3622251]
[1723408509270,0.08184646,58784.0,58771.0,0.403905]
[1723408509493,0.08184646,58778.0,58772.0,0.30512207]
[1723408509669,0.08184646,58778.0,58765.0,0.0536621]
[1723408509670,0.357348,58766.0,58765.0,0.0306621]
[1723408510218,0.59558,58766.0,58765.0,0.0306621]
[1723408510367,0.59558,58766.0,58765.0,0.19447702]
[1723408510802,0.59558,58766.0,58757.0,0.002]
[1723408510803,0.357397,58758.0,58757.0,0.1893]
[1723408510997,0.08184646,58772.0,58756.0,0.05780545]
[1723408510998,0.119134,58757.0,58756.0,0.05780545]
[1723408511202,0.08184646,58764.0,58756.0,0.16381492]
[1723408511374,0.357439,58751.0,58750.0,0.01987303]
[1723408511595,0.357439,58751.0,58742.0,0.1893]
[1723408511596,0.119175,58737.0,58736.0,0.1893]
[1723408511802,0.119175,58737.0,58736.0,0.35311492]
[1723408512357,0.238333,58742.0,58736.0,0.35311492]
[1723408512646,0.119173,58738.0,58737.0,0.16381492]
[1723408512849,0.119173,58738.0,58737.0,0.22760641]
[1723408513051,0.119173,58738.0,58729.0,0.238379]
[1723408513052,0.119191,58729.0,58728.0,0.1893]
[1723408513253,0.357574,58729.0,58728.0,0.35311492]
[1723408513454,0.2948,58743.0,58728.0,0.35311492]
[1723408513663,0.238343,58739.0,58729.0,0.16381492]
[1723408513799,0.238348,58738.0,58730.0,0.119188]
[1723408513997,0.119177,58736.0,58731.0,0.23952521]
[1723408514591,0.119176,58737.0,58732.0,0.023]
[1723408514769,0.08184646,58744.0,58733.0,0.28299692]
[1723408514918,0.119175,58737.0,58734.0,0.023]
[1723408515128,0.238341,58740.0,58735.0,0.16381492]
[1723408515330,0.08184646,58744.0,58731.0,0.07571029]
[1723408515331,0.357555,58732.0,58731.0,0.07571029]
[1723408515772,0.002,58736.0,58703.0,0.01]
[1723408515773,0.1972,58734.0,58703.0,0.01]
[1723408515974,0.119227,58712.0,58708.0,0.16381492]
[1723408516318,0.08184646,58725.0,58709.0,0.2848]
[1723408516615,0.49107874,58733.0,58715.0,0.16381492]
[1723408516801,0.08184646,58730.0,58715.0,0.16381492]
[1723408516997,0.08184646,58730.0,58716.0,0.05678379]
[1723408516998,0.119215,58717.0,58716.0,0.05678379]
[1723408517325,0.119212,58719.0,58716.0,0.22059871]
[1723408517452,0.002,58736.0,58718.0,0.35311492]
[1723408517796,0.119186,58732.0,58721.0,0.16381492]
[1723408517995,0.49107874,58735.0,58721.0,0.16381492]
[1723408517996,0.20102546,58735.0,58734.0,0.001]
[1723408518197,0.357539,58735.0,58734.0,0.001]
[1723408518453,0.357539,58735.0,58721.0,0.28302092]
[1723408518454,0.119195,58728.0,58721.0,0.28302092]
[1723408518652,0.2948,58745.0,58722.0,0.09871209]
[1723408518653,0.119203,58723.0,58722.0,0.09871209]
[1723408518859,0.1192,58725.0,58722.0,0.23952701]
[1723408519007,0.1192,58725.0,58723.0,0.16381492]
[1723408519220,0.596007,58724.0,58723.0,0.16381492]
[1723408519449,0.596017,58723.0,58722.0,0.07571209]
[1723408519650,0.357658,58715.0,58714.0,0.2848]
[1723408519848,0.357658,58715.0,58714.0,0.44861492]
[1723408520045,0.238407,58723.0,58714.0,0.44861492]
[1723408520249,0.01,58735.0,58714.0,0.44861492]